bitfinex/quotes_SOLUSD_20240612
["timestamp","ask_amount","ask_price","bid_price","bid_amount"]
[1718226385801,10.0,155.21,155.11,4.7708]
[1718226385802,10.0,155.21,155.11,0.17]
[1718226386001,10.0,155.21,155.14,2.3848]
[1718226386170,10.0,155.21,155.15,0.34]
[1718226387287,10.0,155.21,155.15,2.7247]
[1718226387605,10.0,155.21,155.16,0.17]
[1718226387988,10.0,155.21,155.16,0.34]
[1718226388195,10.0,155.21,155.15,0.34]
[1718226389895,10.0,155.21,155.15,2.7247]
[1718226390277,10.0,155.21,155.15,0.34]
[1718226390478,10.0,155.21,155.16,0.17]
[1718226390693,10.0,155.21,155.16,0.34]
[1718226397310,10.0,155.21,155.16,0.17]
[1718226397613,10.0,155.21,155.15,0.34]
[1718226398687,10.0,155.19,155.15,0.34]
[1718226398989,10.0,155.19,155.11,20.0]
[1718226399196,10.0,155.19,155.12,2.3851]
[1718226399796,10.0,155.19,155.13,2.385]
[1718226400200,10.0,155.19,155.14,0.68]
[1718226402918,10.0,155.19,155.14,0.17]
[1718226403101,10.0,155.19,155.13,0.68]
[1718226403497,10.0,155.19,155.13,3.065]
[1718226405593,10.0,155.21,155.15,0.17]
[1718226405899,10.0,155.21,155.15,0.68]
[1718226406211,10.0,155.21,155.17,0.17]
[1718226406406,10.0,155.21,155.17,0.34]
[1718226407719,22.4313,155.22,155.17,0.34]
[1718226407900,22.4313,155.22,155.18,0.34]
[1718226408630,32.4313,155.22,155.18,0.34]
[1718226410947,32.4313,155.22,155.17,0.34]
[1718226411232,32.4313,155.22,155.17,0.17]
[1718226412245,32.4313,155.22,155.16,0.51]
[1718226413121,32.4313,155.22,155.14,2.3848]
[1718226413321,32.4313,155.22,155.13,20.0]
[1718226413322,10.0,155.2,155.13,20.0]
[1718226413520,10.0,155.2,155.12,2.3852]
[1718226414134,10.0,155.2,155.13,2.385]
[1718226414536,10.0,155.2,155.14,0.51]
[1718226417041,10.0,155.2,155.14,2.8949]
[1718226418061,10.0,155.2,155.14,0.51]
[1718226421665,10.0,155.2,155.14,2.8949]
[1718226423435,32.4313,155.22,155.14,0.51]
[1718226423634,32.4313,155.22,155.15,0.34]
[1718226423837,32.4313,155.22,155.17,2.3844]
[1718226423838,22.4313,155.22,155.17,2.3844]
[1718226424939,22.4313,155.22,155.16,2.7246]
[1718226425129,32.4313,155.22,155.16,2.7246]
[1718226425336,32.4313,155.22,155.16,0.34]
[1718226425642,32.4313,155.22,155.16,20.17]
[1718226425847,32.4313,155.22,155.16,0.17]
[1718226427151,32.4313,155.22,155.15,2.7247]
[1718226427362,32.4313,155.22,155.16,2.3846]
[1718226427660,32.4313,155.22,155.16,2.5546]
[1718226429060,32.4313,155.22,155.16,0.17]
[1718226431439,10.0,155.2,155.13,20.0]
[1718226432256,10.0,155.2,155.12,2.3851]
[1718226432440,10.0,155.2,155.13,2.385]
[1718226432647,10.0,155.18,155.13,0.17]
[1718226432857,10.0,155.18,155.13,0.34]
[1718226433155,16.5113,155.17,155.11,20.0]
[1718226433333,16.5113,155.17,155.1,8.0681101]
[1718226433538,16.5113,155.17,155.1,10.4536101]
[1718226434066,10.0,155.16,155.1,10.4536101]
[1718226434242,4.87525353,155.26,155.25,23.8324]
[1718226434434,15.4389,155.39,155.25,23.8324]
[1718226434435,15.4389,155.39,155.32,2.3821]
[1718226434655,15.4389,155.39,155.27,4.7657]
[1718226434656,15.4389,155.39,155.29,4.7651]
[1718226434863,15.4389,155.39,155.26,9.5323]
[1718226434864,10.0,155.36,155.3,0.17]
[1718226435039,10.0,155.36,155.31,2.3822]
[1718226435235,10.0,155.34,155.32,7.72770345]
[1718226435443,15.4389,155.39,155.29,2.5525]
[1718226435636,10.0,155.38,155.3,8.24038236]
[1718226435841,10.0,155.38,155.31,7.73038236]
[1718226436044,10.0,155.34,155.32,7.73038236]
[1718226436375,10.0,155.34,155.3,0.51]
[1718226436858,10.0,155.34,155.29,0.17]
[1718226437045,10.0,155.34,155.27,2.5528]
[1718226437251,15.4389,155.39,155.28,0.51]
[1718226437252,10.0,155.32,155.28,0.51]
[1718226437651,10.0,155.34,155.28,0.51]
[1718226440038,10.0,155.34,155.29,0.17]
[1718226441968,10.0,155.34,155.29,2.5526]
[1718226442186,10.0,155.34,155.3,0.51]
[1718226444489,10.0,155.34,155.27,22.3829]
[1718226444787,10.0,155.34,155.28,0.68]
[1718226446475,10.0,155.34,155.28,3.0627]
[1718226446986,10.0,155.34,155.29,2.3825]
[1718226447173,10.0,155.34,155.28,3.0627]
[1718226448063,10.0,155.3,155.24,27.33534721]
[1718226448388,10.0,155.32,155.25,20.0]
[1718226448696,10.0,155.32,155.24,22.3832]
[1718226448865,10.0,155.3,155.24,2.3832]
[1718226449072,10.0,155.26,155.18,9.50728876]
[1718226449272,10.0,155.24,155.19,30.0]
[1718226449473,10.0,155.26,155.17,2.3844]
[1718226450162,10.0,155.23,155.16,2.3845]
[1718226450365,10.0,155.25,155.14,2.3848]
[1718226450590,10.0,155.23,155.16,2.3844]
[1718226451087,10.0,155.23,155.13,14.69113348]
[1718226451088,10.0,155.23,155.15,2.3847]
[1718226451276,21.603,155.29,155.15,2.3847]
[1718226451277,10.0,155.25,155.15,2.3847]
[1718226451675,10.0,155.21,155.15,2.3847]
[1718226452192,10.0,155.23,155.14,2.3849]
[1718226452887,10.0,155.23,155.15,0.17]
[1718226453091,10.0,155.21,155.15,0.68]
[1718226454571,10.0,155.21,155.15,20.68]
[1718226455191,10.0,155.21,155.15,0.68]
[1718226456304,10.0,155.19,155.15,0.68]
[1718226461077,10.0,155.21,155.15,0.68]
[1718226463380,10.0,155.19,155.13,0.17]
[1718226463603,15.2722,155.2,155.13,0.17]
[1718226463604,10.0,155.17,155.13,0.68]
[1718226463813,10.0,155.19,155.13,0.68]
[1718226465009,10.0,155.17,155.1,25.2756219]
[1718226465883,10.0,155.17,155.1,5.2756219]
[1718226466209,10.0,155.17,155.11,0.51]
[1718226466403,10.0,155.17,155.11,0.34]
[1718226466583,10.0,155.15,155.1,0.51]
[1718226467303,10.0,155.15,155.1,20.51]
[1718226467790,10.0,155.15,155.11,0.17]
[1718226485515,21.57,155.2,155.11,0.17]
[1718226485516,10.0,155.19,155.11,0.17]
[1718226485934,10.0,155.19,155.13,0.17]
[1718226486131,10.0,155.17,155.13,0.68]
[1718226487436,10.0,155.19,155.13,0.68]
[1718226488225,10.0,155.21,155.14,2.3848]
[1718226488437,10.0,155.21,155.15,0.68]
[1718226490225,10.0,155.21,155.15,3.0632]
[1718226491339,10.0,155.21,155.15,23.0632]
[1718226492134,10.0,155.21,155.15,20.68]
[1718226492937,10.0,155.21,155.15,20.0]
[1718226493317,10.0,155.21,155.15,29.53071956]
[1718226493637,10.0,155.19,155.15,29.53071956]
[1718226493845,10.0,155.19,155.14,9.53071956]
[1718226494144,10.0,155.19,155.15,0.17]
[1718226494314,10.0,155.15,155.14,9.53071956]
[1718226494517,10.0,155.15,155.13,9.53071956]
[1718226494853,10.0,155.15,155.12,9.53071956]
[1718226495640,10.0,155.13,155.12,9.53071956]
[1718226495821,10.0,155.15,155.12,9.53071956]
[1718226496921,10.0,155.13,155.12,9.53071956]
[1718226498366,10.0,155.13,155.12,9.53876866]
[1718226501943,10.0,155.15,155.12,9.53876866]
[1718226502144,10.0,155.13,155.12,9.53876866]
[1718226502533,10.0,155.13,155.08,2.5558]
[1718226502733,10.0,155.13,155.09,8.24863144]
[1718226503058,10.0,155.13,155.1,7.73863144]
[1718226503437,10.0,155.15,155.12,9.54247926]
[1718226503843,10.0,155.15,155.13,9.54247926]
[1718226504232,10.0,155.15,155.12,9.54247926]
[1718226505451,10.0,155.15,155.13,9.54247926]
[1718226507364,10.0,155.15,155.13,9.53882856]
[1718226508262,10.0,155.15,155.13,9.53908714]
[1718226510950,10.0,155.15,155.13,9.54189106]
[1718226512371,10.0,155.13,155.1,0.17]
[1718226512550,10.0,155.13,155.11,7.73895702]
[1718226522064,10.0,155.13,155.12,9.5338102]
[1718226522575,10.0,155.13,155.1,0.51]
[1718226522773,10.0,155.13,155.11,7.7388935]
[1718226526295,10.0,155.13,155.1,0.51]
[1718226530164,10.0,155.13,155.09,0.17]
[1718226530364,10.0,155.13,155.09,0.51]
[1718226530868,10.0,155.13,155.1,7.73938662]
[1718226531887,10.0,155.13,155.09,0.51]
[1718226532273,10.0,155.11,155.09,0.51]
[1718226532973,10.0,155.13,155.09,0.51]
[1718226535084,10.0,155.13,155.1,7.73931431]
[1718226536065,10.0,155.13,155.09,0.51]
[1718226536290,10.0,155.13,155.1,7.73958662]
[1718226537389,10.0,155.13,155.09,7.73958662]
[1718226538295,10.0,155.13,155.1,7.73958662]
[1718226538604,10.0,155.13,155.08,0.17]
[1718226538769,10.0,155.13,155.09,7.73937645]
[1718226538970,10.0,155.13,155.1,7.73937645]
[1718226539293,10.0,155.13,155.11,7.73937645]
[1718226539493,10.0,155.13,155.08,0.68]
[1718226539793,10.0,155.13,155.09,7.73940234]
[1718226539978,10.0,155.13,155.1,7.73940234]
[1718226540181,10.0,155.13,155.11,7.73940234]
[1718226540376,10.0,155.13,155.09,7.73940234]
[1718226540675,10.0,155.13,155.1,7.73940234]
[1718226540875,10.0,155.13,155.11,7.73940234]
[1718226541095,10.0,155.13,155.08,0.68]
[1718226541287,10.0,155.13,155.09,7.73939448]
[1718226541589,10.0,155.11,155.1,7.73939448]
[1718226545091,10.0,155.13,155.1,7.73939448]
[1718226545287,10.0,155.13,155.11,7.73939448]
[1718226545596,10.0,155.15,155.12,7.73939448]
[1718226545764,10.0,155.15,155.11,2.5553]
[1718226545970,10.0,155.15,155.12,8.07884487]
[1718226546301,10.0,155.15,155.13,7.73884487]
[1718226546473,10.0,155.15,155.12,0.17]
[1718226546674,10.0,155.15,155.13,7.73830413]
[1718226546875,10.0,155.15,155.11,0.34]
[1718226547074,10.0,155.15,155.12,7.90830694]
[1718226547282,10.0,155.15,155.13,7.73830694]
[1718226547482,10.0,155.15,155.12,0.17]
[1718226547682,10.0,155.15,155.13,7.73827458]
[1718226547883,10.0,155.15,155.12,0.17]
[1718226548085,10.0,155.15,155.13,7.73827318]
[1718226548399,10.0,155.15,155.12,0.17]
[1718226548601,10.0,155.15,155.13,7.73826533]
[1718226551481,10.0,155.15,155.14,7.73826533]
[1718226551703,10.0,155.15,155.13,7.73826533]
[1718226551895,10.0,155.15,155.14,7.73826533]
[1718226552094,10.0,155.15,155.13,7.73826533]
[1718226552293,10.0,155.15,155.12,0.17]
[1718226552503,10.0,155.15,155.13,7.73815201]
[1718226554401,10.0,155.15,155.14,7.73815201]
[1718226554703,10.0,155.15,155.13,7.73815201]
[1718226563605,10.0,155.15,155.07,6.448]
[1718226563932,10.0,155.12,155.08,7.73853163]
[1718226564235,10.0,155.12,155.09,7.73853163]
[1718226564422,10.0,155.12,155.06,2.3861]
[1718226564616,10.0,155.12,155.07,7.74020477]
[1718226565027,10.0,155.12,155.08,7.74020477]
[1718226565330,10.0,155.12,155.05,8.8343]
[1718226565331,10.0,155.12,155.07,6.448]
[1718226565518,10.0,155.12,155.08,7.74013694]
[1718226566630,10.0,155.12,155.08,14.18813694]
[1718226566824,10.0,155.12,155.08,6.448]
[1718226567342,10.0,155.12,155.09,7.74013694]
[1718226567632,10.0,155.12,155.08,6.448]
[1718226567834,10.0,155.12,155.09,7.74012768]
[1718226568233,10.0,155.12,155.08,6.448]
[1718226568536,10.0,155.12,155.07,6.618]
[1718226568731,10.0,155.12,155.08,14.188216]
[1718226568932,10.0,155.12,155.08,6.448]
[1718226569114,16.199,155.13,155.08,6.448]
[1718226569115,10.0,155.1,155.08,6.448]
[1718226569647,10.0,155.1,155.07,6.618]
[1718226569817,10.0,155.1,155.08,14.18814116]
[1718226570018,10.0,155.1,155.08,6.448]
[1718226570934,10.0,155.1,155.07,0.17]
[1718226571127,10.0,155.1,155.07,0.68]
[1718226571323,10.0,155.1,155.06,0.17]
[1718226571526,10.0,155.1,155.06,0.34]
[1718226571713,10.0,155.1,155.05,20.0]
[1718226571913,10.0,155.1,155.06,7.74090119]
[1718226572118,10.0,155.1,155.05,7.74090119]
[1718226574461,10.0,155.1,155.04,29.5144]
[1718226575233,22.7771,155.13,155.04,27.128]
[1718226575234,10.0,155.08,155.04,27.128]
[1718226576424,10.0,155.08,155.04,26.448]
[1718226576934,10.0,155.08,155.03,0.17]
[1718226577135,10.0,155.08,155.03,0.68]
[1718226577545,10.0,155.08,155.02,6.448]
[1718226577747,10.0,155.06,155.03,7.74198284]
[1718226578344,10.0,155.06,154.98,8.8353]
[1718226578541,10.0,155.06,155.0,6.448]
[1718226578733,10.0,155.04,155.0,8.835]
[1718226578942,10.0,155.04,154.97,13.5901]
[1718226578943,10.0,155.06,155.02,8.8347]
[1718226579244,10.0,155.06,155.01,2.5568]
[1718226579439,10.0,155.06,155.02,0.17]
[1718226580321,10.0,155.06,155.0,0.34]
[1718226580522,10.0,155.06,155.0,20.34]
[1718226580721,10.0,155.06,155.0,0.34]
[1718226582241,10.0,155.04,155.0,0.34]
[1718226582747,10.0,155.06,155.0,0.34]
[1718226583124,10.0,155.04,155.0,0.34]
[1718226583347,10.0,155.04,154.99,0.34]
[1718226583549,10.0,155.04,155.0,0.34]
[1718226584051,10.0,155.04,154.98,0.17]
[1718226584227,10.0,155.04,154.99,0.17]
[1718226584430,10.0,155.04,154.99,0.34]
[1718226584642,10.0,155.02,154.99,0.34]
[1718226585350,10.0,155.02,154.96,5.16988336]
[1718226585655,10.0,155.02,154.97,20.0]
[1718226585857,10.0,155.02,154.95,2.3877]
[1718226586041,10.0,155.02,154.96,7.7437785]
[1718226586351,10.0,155.0,154.97,20.0]
[1718226586952,10.0,155.0,154.95,2.3877]
[1718226587152,10.0,155.0,154.96,7.74383116]
[1718226587454,10.0,155.0,154.97,20.0]
[1718226588133,10.0,155.0,154.96,2.5576]
[1718226588334,10.0,155.0,154.97,0.17]
[1718226588740,10.0,155.0,154.97,2.7274]
[1718226588939,10.0,155.02,154.98,0.34]
[1718226589247,10.0,155.02,154.99,0.17]
[1718226606162,26.2622,155.02,154.98,0.17]
[1718226606370,26.2622,155.02,154.98,9.55462798]
[1718226608170,26.2622,155.02,154.99,9.55462798]
[1718226608559,26.2622,155.02,154.97,0.34]
[1718226608876,26.2622,155.02,154.99,9.55318518]
[1718226611889,26.2622,155.02,154.99,9.54050152]
[1718226612376,26.2622,155.02,155.0,9.54050152]
[1718226616182,26.2622,155.02,155.01,9.54050152]
[1718226618169,26.2622,155.02,154.97,0.34]
[1718226618365,16.2622,155.02,154.98,7.74389617]
[1718226618570,16.2622,155.02,154.99,28.08389617]
[1718226618776,16.2622,155.02,155.0,7.74389617]
[1718226620182,10.0,155.04,155.01,0.17]
[1718226620361,10.0,155.04,155.03,9.53011102]
[1718226620990,10.0,155.04,155.03,9.52738286]
[1718226622180,10.0,155.04,155.01,0.34]
[1718226622391,10.0,155.04,154.99,2.7271]
[1718226622392,10.0,155.04,155.02,7.91365887]
[1718226622699,10.0,155.04,155.02,8.08365887]
[1718226622902,10.0,155.04,155.02,0.17]
[1718226623074,10.0,155.04,155.01,0.34]
[1718226623277,10.0,155.04,155.02,7.91369772]
[1718226623477,10.0,155.04,155.03,7.74369772]
[1718226628381,10.0,155.04,155.03,7.74368422]
[1718226629279,15.9564,155.06,155.03,7.74368422]
[1718226629484,15.9564,155.06,155.05,9.52069275]
[1718226630085,10.0,155.1,155.05,9.52069275]
[1718226630295,25.8854,155.1,155.05,9.52069275]
[1718226635124,25.8854,155.1,155.05,9.51763195]
[1718226635788,10.0,155.07,155.05,9.51763195]
[1718226635992,10.0,155.09,155.05,9.51763195]
[1718226636409,15.8854,155.1,155.05,9.51763195]
[1718226636410,10.0,155.06,155.05,9.51763195]
[1718226636723,10.0,155.09,155.05,9.51763195]
[1718226637907,10.0,155.07,155.05,9.51763195]
[1718226638408,10.0,155.06,155.05,9.51763195]
[1718226638801,10.0,155.06,155.05,9.52244253]
[1718226644696,6.67757195,155.15,154.99,6.448]
[1718226644697,10.0,155.04,154.99,6.448]
[1718226645002,25.2008,155.04,155.0,7.74355282]
[1718226645210,25.2008,155.04,155.01,7.74355282]
[1718226645410,25.2008,155.04,154.99,2.3871]
[1718226645708,25.2008,155.04,155.0,7.74432471]
[1718226645913,25.2008,155.04,155.01,7.74432471]
[1718226646123,25.2008,155.04,154.98,2.3873]
[1718226646431,25.2008,155.04,154.99,10.64149979]
[1718226646630,25.2008,155.04,155.0,7.74439979]
[1718226647008,25.2008,155.04,155.01,7.74439979]
[1718226647241,25.2008,155.04,155.0,7.74439979]
[1718226647443,25.2008,155.04,155.01,7.74439979]
[1718226647819,25.2008,155.04,154.99,2.8971]
[1718226648136,25.2008,155.04,155.0,7.74442938]
[1718226648317,25.2008,155.04,155.01,7.74442938]
[1718226648535,25.2008,155.04,155.0,7.74442938]
[1718226648706,25.2008,155.04,155.01,7.74443444]
[1718226648909,25.2008,155.04,155.0,7.74443444]
[1718226649110,25.2008,155.04,155.01,7.74443444]
[1718226649609,25.2008,155.04,155.0,7.74443444]
[1718226649810,25.2008,155.04,155.01,7.74443444]
[1718226650145,25.2008,155.04,155.0,7.74443444]
[1718226650306,25.2008,155.04,155.01,7.74443584]
[1718226650506,25.2008,155.04,155.0,7.74443584]
[1718226650728,25.2008,155.04,155.01,7.74443584]
[1718226651026,25.2008,155.04,155.0,7.74443584]
[1718226651230,25.2008,155.04,154.99,2.8971]
[1718226651231,25.2008,155.04,155.01,7.74439698]
[1718226651440,10.0,155.02,155.0,7.74439698]
[1718226651605,10.0,155.02,154.97,0.17]
[1718226651810,10.0,155.02,154.98,7.74474512]
[1718226652042,10.0,155.02,154.99,7.74474512]
[1718226652229,10.0,155.02,154.98,7.74474512]
[1718226652436,10.0,155.02,154.96,2.3876]
[1718226652616,10.0,155.02,154.97,7.74589969]
[1718226652816,10.0,155.02,154.98,7.74589969]
[1718226653143,10.0,155.02,154.96,2.3876]
[1718226653345,10.0,155.02,154.97,7.74595344]
[1718226653557,10.0,155.02,154.97,7.91595344]
[1718226653721,10.0,155.02,154.98,7.74595344]
[1718226654249,10.0,155.02,154.97,0.17]
[1718226654422,10.0,155.02,154.97,0.68]
[1718226660925,10.0,155.02,154.96,20.0]
[1718226661130,10.0,155.0,154.93,22.3881]
[1718226661325,10.0,155.0,154.94,7.74612473]
[1718226661522,10.0,154.98,154.94,7.74612473]
[1718226661730,10.0,154.98,154.95,7.74612473]
[1718226661928,10.0,154.96,154.91,0.8333365]
[1718226662133,10.0,154.96,154.92,7.74642277]
[1718226662426,10.0,154.96,154.93,7.74642277]
[1718226662756,10.0,154.96,154.94,7.74642277]
[1718226663048,10.0,154.96,154.91,0.8333365]
[1718226663254,10.0,154.96,154.92,7.74704048]
[1718226665152,10.0,154.98,154.92,7.74704048]
[1718226665653,10.0,154.98,154.92,10.13524048]
[1718226665950,10.0,154.98,154.93,7.74704048]
[1718226666338,10.0,154.96,154.91,3.5617365]
[1718226666550,10.0,154.96,154.93,0.17]
[1718226672157,10.0,154.96,154.92,0.51]
[1718226680552,10.0,154.96,154.93,0.17]
[1718226681667,10.0,154.98,154.93,0.17]
[1718226691580,10.0,154.98,154.95,0.17]
[1718226691765,10.0,154.98,154.95,0.68]
[1718226693177,10.0,154.98,154.93,0.17]
[1718226693386,10.0,154.98,154.93,0.68]
[1718226694067,10.0,154.98,154.93,3.0681]
[1718226694754,10.0,154.98,154.93,0.68]
[1718226694955,10.0,154.98,154.93,3.0681]
[1718226695181,10.0,154.98,154.93,23.0681]
[1718226695386,10.0,154.98,154.93,3.0681]
[1718226695682,10.0,154.98,154.95,0.17]
[1718226695981,10.0,154.98,154.95,0.51]
[1718226696970,10.0,154.98,154.96,0.17]
[1718226697168,10.0,154.98,154.96,0.68]
[1718226697381,10.0,155.02,154.96,3.0676]
[1718226697703,10.0,155.02,154.97,2.3875]
[1718226697881,10.0,155.02,154.98,0.68]
[1718226700499,31.6668,155.07,154.98,0.68]
[1718226700683,31.6668,155.07,155.0,0.17]
[1718226700872,31.6668,155.07,155.01,0.17]
[1718226701076,31.6668,155.07,155.01,0.68]
[1718226704105,10.0,155.05,155.01,0.68]
[1718226704674,10.0,155.05,154.97,2.3874]
[1718226704879,21.6668,155.07,154.97,0.17]
[1718226704880,10.0,155.03,154.97,0.17]
[1718226705087,10.0,155.03,154.98,0.34]
[1718226706621,10.0,155.01,154.98,0.34]
[1718226706796,10.0,155.01,154.97,0.17]
[1718226707003,25.9363,155.01,154.97,0.17]
[1718226707197,25.9363,155.01,154.97,0.34]
[1718226709710,25.9363,155.01,154.96,0.17]
[1718226709908,25.9363,155.01,154.96,0.34]
[1718226711303,25.9363,155.01,154.95,0.68]
[1718226711504,25.9363,155.01,154.96,2.3876]
[1718226711806,25.9363,155.01,154.97,0.68]
[1718226712815,25.9363,155.01,154.97,0.34]
[1718226713111,25.9363,155.01,154.96,0.51]
[1718226713320,25.1863,155.01,154.96,0.51]
[1718226714100,25.1863,155.01,154.96,2.8977]
[1718226714903,25.1863,155.01,154.96,0.51]
[1718226715734,25.1863,155.01,154.97,2.3874]
[1718226715895,25.1863,155.01,154.98,0.68]
[1718226718398,10.0,154.99,154.95,0.17]
[1718226718594,10.0,154.97,154.91,0.8333365]
[1718226718794,10.0,154.97,154.92,7.74715593]
[1718226719412,10.0,154.97,154.92,10.13545593]
[1718226719719,10.0,154.97,154.93,0.17]
[1718226720512,10.0,154.99,154.94,2.3879]
[1718226720694,10.0,154.99,154.95,0.17]
[1718226721208,10.0,154.99,154.95,2.7278]
[1718226721523,10.0,154.99,154.96,0.34]
[1718226721706,10.0,154.99,154.97,0.17]
[1718226722439,10.0,154.99,154.96,0.34]
[1718226722714,10.0,154.99,154.96,0.17]
[1718226722921,10.0,154.99,154.96,0.34]
[1718226723129,10.0,154.99,154.94,0.17]
[1718226723312,10.0,154.99,154.94,3.0679]
[1718226724015,10.0,154.99,154.94,0.68]
[1718226724702,10.0,154.99,154.91,10.78187086]
[1718226724896,10.0,154.99,154.93,2.388]
[1718226726719,10.0,154.99,154.94,0.17]
[1718226726930,10.0,154.99,154.94,0.68]
[1718226729627,10.0,154.99,154.94,0.34]
[1718226729829,10.0,154.99,154.94,2.5579]
[1718226730332,25.1863,155.01,154.94,0.17]
[1718226730517,25.1863,155.01,154.96,2.3876]
[1718226730715,25.1863,155.01,154.97,2.3874]
[1718226732537,25.1863,155.01,154.96,2.5576]
[1718226732828,25.1863,155.01,154.97,0.51]
[1718226740549,25.1863,155.01,154.98,0.17]
[1718226742234,25.1863,155.01,154.95,5.09811584]
[1718226742425,25.1863,155.01,154.94,13.06147255]
[1718226742615,15.1863,155.01,154.95,12.52256957]
[1718226742935,15.6797,155.05,154.96,12.52179481]
[1718226743132,15.6797,155.05,154.98,2.3873]
[1718226743319,15.6797,155.05,154.99,2.3872]
[1718226743524,15.6797,155.05,154.96,4.7753]
[1718226743926,15.6797,155.05,154.98,2.3873]
[1718226744120,15.6797,155.05,154.99,0.17]
[1718226744324,15.6797,155.05,154.99,0.68]
[1718226744925,10.0,155.04,154.99,0.34]
[1718226745113,10.0,155.04,154.98,0.51]
[1718226745313,10.0,155.04,154.98,2.8973]
[1718226745736,10.0,155.04,154.98,0.51]
[1718226745941,10.0,155.04,154.99,0.17]
[1718226747431,10.0,155.04,154.99,2.5571]
[1718226747637,10.0,155.04,154.99,0.17]
[1718226749056,10.0,155.04,154.98,0.51]
[1718226749360,10.0,155.04,155.0,0.17]
[1718226749543,10.0,155.04,155.0,0.34]
[1718226749734,10.0,155.04,155.0,0.17]
[1718226750752,10.0,155.04,155.0,0.34]
[1718226751144,10.0,155.04,155.0,2.727]
[1718226753557,10.0,155.04,155.0,0.34]
[1718226756459,15.6797,155.05,155.01,0.34]
[1718226757965,15.6797,155.05,155.02,0.17]
[1718226758345,15.6797,155.05,155.01,0.17]
[1718226760865,10.0,155.04,155.01,0.17]
[1718226762462,10.0,155.04,155.0,0.34]
[1718226762666,10.0,155.04,154.99,0.34]
[1718226762871,10.0,155.04,154.98,0.68]
[1718226763966,6.1765,155.06,154.94,1.12177255]
[1718226763967,16.0886,155.01,154.95,2.3878]
[1718226764157,16.0886,155.01,154.94,1.12177255]
[1718226764158,10.0,155.0,154.94,5.19864317]
[1718226764358,10.0,155.0,154.92,2.3882]
[1718226764670,10.0,155.0,154.93,7.74696966]
[1718226764857,10.0,154.98,154.91,0.8333365]
[1718226765055,10.0,154.98,154.92,7.7479281]
[1718226765463,10.0,155.0,154.92,10.1362281]
[1718226765664,10.0,154.98,154.92,2.3883]
[1718226765965,10.0,154.98,154.93,0.17]
[1718226766270,10.0,155.0,154.93,0.17]
[1718226767768,8.0,154.98,154.93,8.17]
[1718226767965,18.0,154.98,154.93,8.17]
[1718226768856,18.0,154.98,154.93,0.17]
[1718226770649,18.0,154.98,154.92,10.8982]
[1718226770650,10.0,154.95,154.91,0.8333365]
[1718226771276,18.0,154.95,154.91,0.8333365]